bitfinex/quotes_SOLUSD_20251125
["timestamp","ask_amount","ask_price","bid_price","bid_amount"]
[1764045573101,0.1,138.55,138.54,19.72281535]
[1764045575682,0.1,138.55,138.54,21.97333714]
[1764045576278,0.1,138.55,138.54,19.72281535]
[1764045578708,0.1,138.55,138.54,21.97333714]
[1764045585415,0.1,138.55,138.54,19.72281535]
[1764045585614,0.1,138.55,138.54,16.02807686]
[1764045585824,0.1,138.55,138.54,16.68807686]
[1764045586047,0.1,138.55,138.54,16.83023843]
[1764045589415,0.1,138.55,138.54,20.01023843]
[1764045589612,0.1,138.55,138.54,23.51741852]
[1764045590120,0.1,138.55,138.54,26.40978628]
[1764045590634,0.1,138.55,138.54,27.13159947]
[1764045591397,0.1,138.56,138.55,8.95210649]
[1764045591692,0.1,138.57,138.56,16.16919655]
[1764045591912,0.1,138.57,138.56,23.51637664]
[1764045595422,0.1,138.57,138.56,39.82524064]
[1764045597709,0.71,138.62,138.57,8.95210649]
[1764045597904,0.71,138.62,138.59,8.95210649]
[1764045598233,0.71,138.62,138.61,8.80994492]
[1764045598620,0.71,138.63,138.61,8.80994492]
[1764045599120,4.21718009,138.63,138.61,8.80994492]
[1764045599513,0.71,138.62,138.61,8.80994492]
[1764045600009,0.71,138.64,138.61,16.02432106]
[1764045600222,4.31718009,138.66,138.63,8.80994492]
[1764045600428,0.81,138.66,138.63,8.80994492]
[1764045600631,0.71,138.65,138.63,8.80994492]
[1764045601336,3.60718009,138.66,138.63,9.52994492]
[1764045601337,0.81,138.66,138.63,9.52994492]
[1764045601537,0.1,138.66,138.65,8.80994492]
[1764045601721,0.1,138.66,138.65,16.02235025]
[1764045602306,0.1,138.66,138.65,16.74235025]
[1764045602529,0.1,138.66,138.65,16.02235025]
[1764045603628,0.1,138.66,138.65,8.80994492]
[1764045604022,0.81,138.66,138.65,8.80994492]
[1764045604233,0.1,138.66,138.65,8.80994492]
[1764045604430,4.31718009,138.66,138.65,8.80994492]
[1764045604631,4.31718009,138.66,138.64,4.35934166]
[1764045604632,4.31718009,138.66,138.64,0.14216157]
[1764045604826,0.71,138.65,138.64,8.80994492]
[1764045605226,0.1,138.66,138.64,16.02271547]
[1764045605418,0.1,138.66,138.65,7.54934166]
[1764045605619,0.1,138.66,138.65,23.57169191]
[1764045606326,0.1,138.66,138.65,20.06451182]
[1764045607747,0.1,138.66,138.65,24.38169191]
[1764045608532,0.1,138.66,138.65,23.66169191]
[1764045608930,0.1,138.66,138.65,24.38169191]
[1764045610457,0.1,138.66,138.65,23.66169191]
[1764045610824,0.81,138.66,138.65,12.13210649]
[1764045611050,0.1,138.66,138.65,19.34451182]
[1764045614138,0.1,138.66,138.65,20.06451182]
[1764045614747,0.1,138.66,138.65,19.34451182]
[1764045615145,0.1,138.66,138.65,23.57169191]
[1764045615350,0.1,138.66,138.65,27.178872]
[1764045616338,0.1,138.66,138.65,23.67169191]
[1764045616744,0.1,138.66,138.65,27.178872]
[1764045616944,0.1,138.66,138.65,23.67169191]
[1764045617147,0.1,138.66,138.65,27.178872]
[1764045620860,0.1,138.66,138.65,22.95169191]
[1764045622164,0.1,138.66,138.65,19.34451182]
[1764045622362,0.1,138.66,138.65,19.20235025]
[1764045622573,0.81,138.66,138.65,19.20235025]
[1764045622873,0.1,138.66,138.65,19.34451182]
[1764045623673,0.79,138.66,138.65,19.34451182]
[1764045623971,0.79,138.66,138.65,16.02235025]
[1764045624179,0.79,138.66,138.65,16.16451182]
[1764045624384,0.79,138.66,138.65,8.80994492]
[1764045624552,0.79,138.66,138.65,16.02235025]
[1764045624750,0.1,138.66,138.65,16.82451182]
[1764045624964,0.1,138.66,138.65,20.33169191]
[1764045625177,0.1,138.66,138.65,19.67169191]
[1764045625348,0.1,138.66,138.65,16.16451182]
[1764045627180,0.79,138.66,138.65,8.80994492]
[1764045630072,0.1,138.66,138.65,8.80994492]
[1764045630372,0.79,138.66,138.65,8.80994492]
[1764045630763,0.1,138.66,138.65,8.80994492]
[1764045630964,0.1,138.66,138.65,16.02235025]
[1764045631272,0.1,138.66,138.65,16.82451182]
[1764045634152,0.1,138.66,138.65,16.68235025]
[1764045634360,0.1,138.66,138.65,16.02235025]
[1764045634770,0.79,138.66,138.65,8.80994492]
[1764045634968,0.1,138.66,138.65,16.02235025]
[1764045635674,0.1,138.66,138.65,16.68235025]
[1764045636177,0.1,138.66,138.65,16.02235025]
[1764045636865,0.79,138.66,138.65,16.16451182]
[1764045637068,0.1,138.66,138.65,16.16451182]
[1764045638183,0.79,138.66,138.65,8.95210649]
[1764045638764,0.1,138.66,138.65,16.16451182]
[1764045639788,0.79,138.66,138.65,16.16451182]
[1764045640090,0.79,138.66,138.65,8.95210649]
[1764045641084,0.79,138.66,138.65,8.80994492]
[1764045641980,0.79,138.66,138.63,7.2132245]
[1764045641981,4.29718009,138.66,138.63,8.80994492]
[1764045642198,3.50718009,138.64,138.63,8.80994492]
[1764045642397,4.19718009,138.64,138.63,8.80994492]
[1764045642602,4.19718009,138.64,138.61,8.80994492]
[1764045642795,0.69,138.63,138.61,8.80994492]
[1764045643500,4.19718009,138.65,138.61,16.0242347]
[1764045643704,0.69,138.64,138.61,16.0242347]
[1764045644029,4.19718009,138.64,138.61,8.80994492]
[1764045644594,0.69,138.63,138.61,8.80994492]
[1764045651404,2.93234517,138.63,138.61,8.80994492]
[1764045652206,0.69,138.62,138.61,8.80994492]
[1764045653227,2.93234517,138.62,138.6,3.18]
[1764045653898,0.69,138.62,138.6,3.18]
[1764045654093,2.93234517,138.63,138.6,3.18]
[1764045654295,2.93234517,138.63,138.6,8.80994492]
[1764045656122,2.24234517,138.63,138.6,8.80994492]
[1764045656416,0.67,138.62,138.6,8.80994492]
[1764045659041,2.91234517,138.62,138.6,8.80994492]
[1764045659524,0.67,138.61,138.6,8.80994492]
[1764045660417,0.67,138.62,138.6,8.80994492]
[1764045661443,2.91234517,138.62,138.6,8.80994492]
[1764045662626,0.67,138.61,138.6,8.80994492]
[1764045663522,2.24234517,138.62,138.6,8.80994492]
[1764045663825,2.91234517,138.62,138.6,8.80994492]
[1764045665438,0.67,138.61,138.6,8.80994492]
[1764045667531,2.91234517,138.62,138.6,8.80994492]
[1764045668339,0.67,138.61,138.6,8.80994492]
[1764045668540,2.91234517,138.61,138.6,8.80994492]
[1764045669321,2.24234517,138.61,138.57,8.80994492]
[1764045669525,2.91234517,138.61,138.59,0.14216157]
[1764045669724,2.24234517,138.61,138.59,0.14216157]
[1764045669941,2.24234517,138.61,138.6,8.80994492]
[1764045670438,2.91234517,138.62,138.6,8.80994492]
[1764045670939,2.24234517,138.61,138.58,9.51994492]
[1764045671244,2.24234517,138.6,138.58,0.14216157]
[1764045671443,2.91234517,138.6,138.58,0.14216157]
[1764045672739,2.24234517,138.59,138.58,0.14216157]
[1764045672920,2.91234517,138.6,138.58,0.14216157]
[1764045674416,2.24234517,138.6,138.58,0.85216157]
[1764045674741,2.24234517,138.6,138.58,0.14216157]
[1764045674932,2.91234517,138.6,138.58,0.14216157]
[1764045675814,2.91234517,138.6,138.57,0.71]
[1764045676139,2.91234517,138.59,138.58,8.80994492]
[1764045676339,2.91234517,138.59,138.56,8.80994492]
[1764045676642,16.308864,138.61,138.54,8.80994492]
[1764045676643,2.24234517,138.57,138.54,8.80994492]
[1764045676817,2.24234517,138.56,138.53,3.18]
[1764045677022,2.24234517,138.55,138.52,0.71]
[1764045677328,2.24234517,138.55,138.53,8.80994492]
[1764045677520,2.91234517,138.55,138.53,8.80994492]
[1764045678336,0.67,138.55,138.53,8.80994492]
[1764045678542,2.24234517,138.56,138.53,8.80994492]
[1764045678543,0.67,138.56,138.53,9.51994492]
[1764045680742,2.24234517,138.55,138.53,8.80994492]
[1764045681422,2.24234517,138.55,138.53,9.51994492]
[1764045682237,2.24234517,138.55,138.53,8.80994492]
[1764045682439,2.24234517,138.55,138.53,9.51994492]
[1764045683233,2.24234517,138.58,138.54,0.81216157]
[1764045683432,0.68,138.58,138.54,0.81216157]
[1764045683640,2.92234517,138.58,138.54,0.81216157]
[1764045684018,0.68,138.57,138.54,0.81216157]
[1764045684443,0.68,138.57,138.54,8.0300874]
[1764045685645,0.68,138.58,138.55,7.8875346]
[1764045685848,2.24234517,138.58,138.55,7.2175346]
[1764045686033,0.68,138.57,138.55,7.2175346]
[1764045687341,2.92234517,138.58,138.55,7.2175346]
[1764045687544,0.68,138.61,138.56,9.47994492]
[1764045687739,2.24234517,138.61,138.58,7.21604849]
[1764045687939,2.92234517,138.62,138.58,7.21604849]
[1764045688135,19.23120917,138.62,138.58,0.67]
[1764045688341,19.23120917,138.62,138.59,0.67]
[1764045689132,18.55120917,138.62,138.59,0.67]
[1764045689551,19.23120917,138.62,138.59,0.67]
[1764045689733,19.23120917,138.62,138.58,7.215792]
[1764045689734,0.68,138.61,138.58,7.215792]
[1764045690053,2.92234517,138.61,138.58,7.885792]
[1764045691254,2.24234517,138.62,138.59,0.67]
[1764045691757,2.92234517,138.62,138.59,0.67]
[1764045691940,2.92234517,138.61,138.58,0.14216157]
[1764045692138,2.92234517,138.61,138.57,16.69634558]
[1764045692329,2.92234517,138.61,138.58,0.67]
[1764045692841,0.68,138.61,138.58,0.67]
[1764045693043,2.92234517,138.61,138.58,0.67]
[1764045693552,2.92234517,138.61,138.58,7.88573108]
[1764045694749,2.24234517,138.61,138.58,7.21573108]
[1764045694949,2.92234517,138.61,138.58,7.21573108]
[1764045695152,2.92234517,138.61,138.58,0.67]
[1764045695349,0.68,138.6,138.57,16.69630697]
[1764045695962,2.92234517,138.61,138.58,0.67]
[1764045699066,0.68,138.6,138.57,16.69630697]
[1764045699267,2.92234517,138.61,138.58,0.67]
[1764045700047,0.68,138.61,138.58,7.88588596]
[1764045701772,2.24234517,138.62,138.58,7.21588596]
[1764045702075,2.92234517,138.62,138.59,0.67]
[1764045706777,2.92234517,138.61,138.58,7.21588596]
[1764045706982,2.92234517,138.61,138.55,3.32216157]
[1764045706983,2.24234517,138.59,138.55,3.32216157]
[1764045707281,0.68,138.6,138.56,9.47994492]
[1764045707470,2.24234517,138.61,138.58,8.80994492]
[1764045707674,2.92234517,138.62,138.58,8.80994492]
[1764045707977,2.92234517,138.62,138.58,9.47994492]
[1764045708181,2.24234517,138.62,138.58,9.47994492]
[1764045708478,2.92234517,138.62,138.58,9.47994492]
[1764045708679,0.68,138.61,138.58,9.47994492]
[1764045709381,4.18499107,138.61,138.58,16.6957031]
[1764045709581,3.50499107,138.65,138.61,0.14216157]
[1764045709766,0.1,138.66,138.62,8.80994492]
[1764045709965,0.1,138.66,138.63,3.64715264]
[1764045710179,0.1,138.66,138.65,8.80994492]
[1764045710571,0.1,138.66,138.65,9.47994492]
[1764045713188,0.1,138.66,138.65,8.80994492]
[1764045717097,3.60499107,138.66,138.64,8.80994492]
[1764045717275,3.60499107,138.66,138.64,9.48994492]
[1764045717479,0.1,138.66,138.64,9.48994492]
[1764045721690,0.1,138.66,138.65,0.68]
[1764045723500,0.1,138.66,138.65,9.48994492]
[1764045724107,0.1,138.66,138.65,16.70235025]
[1764045724700,0.1,138.66,138.65,9.48994492]
[1764045724904,0.1,138.66,138.65,8.80994492]
[1764045725895,0.1,138.66,138.65,9.48994492]
[1764045726184,0.1,138.66,138.63,7.35550826]
[1764045726400,0.1,138.66,138.64,9.48994492]
[1764045726597,0.1,138.66,138.62,18.03438671]
[1764045726598,4.32499107,138.66,138.61,3.18]
[1764045726798,4.32499107,138.66,138.63,9.48994492]
[1764045726995,3.60499107,138.66,138.63,9.48994492]
[1764045727195,3.60499107,138.66,138.64,0.68]
[1764045727611,0.1,138.66,138.64,0.68]
[1764045728284,0.1,138.66,138.64,7.89285495]
[1764045728798,0.1,138.66,138.65,9.48994492]
[1764045729384,0.1,138.66,138.65,9.63210649]
[1764045729609,0.1,138.66,138.65,13.13709756]
[1764045729789,0.1,138.66,138.65,9.63210649]
[1764045730306,0.1,138.66,138.65,16.84451182]
[1764045744227,0.82,138.66,138.65,16.16451182]
[1764045744426,0.1,138.66,138.65,8.95210649]
[1764045744624,0.82,138.66,138.65,8.80994492]
[1764045744930,0.1,138.66,138.65,8.80994492]
[1764045745529,0.1,138.66,138.65,16.02235025]
[1764045746520,0.1,138.66,138.65,16.73235025]
[1764045747125,0.1,138.66,138.65,16.87451182]
[1764045750745,0.1,138.66,138.65,8.95210649]
[1764045751033,0.1,138.66,138.65,16.16451182]
[1764045752536,0.1,138.66,138.65,16.87451182]
[1764045757414,0.1,138.66,138.65,20.37950289]
[1764045762929,0.1,138.66,138.65,16.87451182]
[1764045763827,0.1,138.66,138.65,16.16451182]
[1764045764159,0.1,138.66,138.65,16.87451182]
[1764045767222,0.1,138.66,138.65,16.16451182]
[1764045767843,0.1,138.66,138.65,16.87451182]
[1764045772147,0.1,138.66,138.65,16.16451182]
[1764045772726,0.79,138.66,138.65,16.16451182]
[1764045774754,0.79,138.66,138.65,8.80994492]
[1764045774932,3.03070431,138.66,138.62,19.20362952]
[1764045775255,3.03070431,138.66,138.63,0.14216157]
[1764045775449,0.69,138.65,138.63,0.14216157]
[1764045776238,0.69,138.65,138.64,8.80994492]
[1764045776638,0.1,138.66,138.64,9.49994492]
[1764045776961,0.76,138.66,138.64,8.80994492]
[1764045777829,0.76,138.66,138.63,0.14216157]
[1764045778029,3.00070431,138.66,138.63,8.95210649]
[1764045778233,3.00070431,138.66,138.63,7.3556036]
[1764045778449,0.66,138.65,138.63,7.3556036]
[1764045778652,0.66,138.65,138.62,11.08373127]
[1764045778829,0.66,138.65,138.63,8.80994492]
[1764045780765,0.66,138.65,138.62,3.87]
[1764045781350,2.90070431,138.65,138.62,3.18]
[1764045781548,2.24070431,138.63,138.59,8.80994492]
[1764045781747,2.24070431,138.62,138.59,11.98994492]
[1764045782056,2.24070431,138.61,138.59,8.80994492]
[1764045782564,0.66,138.6,138.59,8.80994492]
[1764045782944,2.90070431,138.6,138.59,8.80994492]
[1764045783663,2.90070431,138.6,138.57,3.18]
[1764045783975,2.24070431,138.58,138.53,8.80994492]
[1764045784140,2.24070431,138.55,138.5,7.2202166]
[1764045784334,2.90070431,138.54,138.51,10.3995288]
[1764045784537,0.66,138.54,138.52,8.80994492]
[1764045785465,2.90070431,138.55,138.52,8.80994492]
[1764045786265,2.24070431,138.57,138.53,0.83216157]
[1764045786485,2.90070431,138.57,138.53,0.83216157]
[1764045787140,0.66,138.57,138.53,0.83216157]
[1764045787566,2.90070431,138.57,138.53,8.05067405]
[1764045787769,2.24070431,138.56,138.53,7.36067405]
[1764045787971,0.66,138.56,138.53,8.05067405]
[1764045789377,2.90070431,138.58,138.55,8.80994492]
[1764045790277,0.66,138.57,138.55,8.80994492]
[1764045790889,2.90070431,138.57,138.55,8.80994492]
[1764045798564,2.90070431,138.58,138.55,16.71752422]
[1764045799377,0.66,138.57,138.55,16.02752422]
[1764045799978,2.90070431,138.57,138.55,8.80994492]
[1764045800284,2.24070431,138.56,138.55,8.80994492]
[1764045800490,2.90070431,138.56,138.55,8.80994492]
[1764045801473,2.90070431,138.56,138.53,8.95210649]
[1764045801691,2.90070431,138.55,138.53,8.80994492]
[1764045802857,2.90070431,138.54,138.51,7.21950647]
[1764045803058,2.90070431,138.54,138.52,8.80994492]
[1764045804984,2.90070431,138.55,138.52,16.73904047]
[1764045805576,2.90070431,138.55,138.53,0.14216157]
[1764045805958,2.90070431,138.55,138.53,0.28432314]
[1764045806159,0.66,138.55,138.53,0.28432314]
[1764045806361,2.24070431,138.56,138.53,0.99432314]
[1764045806567,2.90070431,138.56,138.53,0.99432314]
[1764045807482,16.308864,138.57,138.53,7.50288844]
[1764045807788,2.90070431,138.56,138.53,8.21288844]
[1764045808288,2.90070431,138.56,138.53,0.99432314]
[1764045808487,2.90070431,138.56,138.53,8.21283307]
[1764045809202,0.66,138.59,138.55,9.09426806]
[1764045809386,18.54956831,138.58,138.55,9.09426806]
[1764045809582,18.54956831,138.58,138.55,9.80426806]
[1764045809793,19.20956831,138.58,138.55,9.80426806]
[1764045810481,18.54956831,138.58,138.55,17.02175197]
[1764045810680,18.54956831,138.58,138.55,9.80426806]
[1764045810888,19.20956831,138.58,138.55,9.80426806]
[1764045815190,2.24070431,138.56,138.52,12.98426806]
[1764045815378,2.24070431,138.53,138.5,8.80994492]
[1764045815579,2.24070431,138.52,138.51,0.28432314]
[1764045816672,2.24070431,138.52,138.51,0.14216157]
[1764045817271,2.24070431,138.52,138.51,0.28432314]
[1764045820471,2.90070431,138.53,138.51,0.28432314]
[1764045821787,9.51994492,138.57,138.51,0.42648471]
[1764045821991,2.24070431,138.55,138.53,0.28432314]
[1764045822495,2.90070431,138.55,138.53,0.28432314]
[1764045823076,18.54956831,138.55,138.53,0.99432314]
[1764045823280,16.968864,138.55,138.53,0.28432314]
[1764045823806,2.90070431,138.54,138.5,9.09426806]
[1764045823984,2.24070431,138.52,138.5,9.09426806]
[1764045824179,2.24070431,138.52,138.5,9.80426806]
[1764045824500,2.90070431,138.53,138.5,9.80426806]
[1764045825375,2.90070431,138.52,138.5,0.28432314]
[1764045825574,2.24070431,138.53,138.5,0.28432314]
[1764045825877,2.24070431,138.53,138.5,0.99432314]
[1764045826274,2.24070431,138.52,138.5,0.28432314]
[1764045826609,2.90070431,138.52,138.5,0.28432314]
[1764045826994,16.308864,138.55,138.5,0.28432314]
[1764045827213,19.20956831,138.55,138.53,0.28432314]
[1764045828793,18.54956831,138.55,138.53,0.28432314]
[1764045828989,2.90070431,138.54,138.53,0.28432314]
[1764045829388,2.24070431,138.54,138.53,0.28432314]
[1764045830102,19.20956831,138.55,138.53,0.28432314]
[1764045830303,18.54956831,138.55,138.53,0.99432314]
[1764045830495,2.24070431,138.56,138.55,0.28432314]
[1764045830801,16.308864,138.57,138.55,0.99432314]
[1764045830802,19.81654676,138.57,138.55,0.99432314]
[1764045831004,19.81654676,138.57,138.55,0.28432314]
[1764045831191,3.50768276,138.57,138.55,0.99432314]
[1764045832381,3.50768276,138.58,138.55,7.50188103]
[1764045832586,3.50768276,138.58,138.55,8.21188103]
[1764045832787,3.50768276,138.58,138.55,0.99432314]
[1764045833001,3.50768276,138.57,138.55,0.99432314]
[1764045836207,0.71,138.58,138.55,0.99432314]
[1764045836390,3.50768276,138.57,138.55,8.2119323]
[1764045838092,3.50768276,138.57,138.55,0.28432314]
[1764045840091,3.50768276,138.57,138.55,0.96432314]
[1764045840435,4.19768276,138.56,138.55,0.28432314]
[1764045840891,3.50768276,138.56,138.55,0.28432314]
[1764045841613,3.50768276,138.56,138.52,0.14216157]
[1764045842699,3.50768276,138.56,138.52,7.36133569]
[1764045843608,3.50768276,138.56,138.53,16.31279834]
[1764045844212,0.69,138.58,138.53,16.31279834]
[1764045844397,3.50768276,138.56,138.53,16.31279834]
[1764045850221,0.69,138.58,138.53,16.31279834]
[1764045850222,0.69,138.58,138.55,0.28432314]
[1764045850525,4.19768276,138.58,138.55,0.28432314]
[1764045850727,3.50768276,138.57,138.55,9.09426806]
[1764045858129,3.50768276,138.57,138.53,0.68]
[1764045859330,3.50768276,138.57,138.54,7.21782704]
[1764045860530,3.50768276,138.57,138.54,7.89782704]
[1764045860709,3.50768276,138.57,138.52,9.09426806]
[1764045860710,3.50768276,138.55,138.52,9.09426806]
[1764045860913,3.50768276,138.54,138.52,8.80994492]
[1764045861524,4.19768276,138.55,138.52,8.80994492]
[1764045862817,3.50768276,138.54,138.52,16.02882035]
[1764045863020,4.21768276,138.54,138.51,16.02945988]
[1764045863333,3.50768276,138.53,138.5,8.80994492]
[1764045863522,0.71,138.54,138.5,9.47994492]
[1764045863722,4.21768276,138.54,138.5,9.47994492]
[1764045865306,3.50768276,138.56,138.51,0.95432314]
[1764045865504,19.81654676,138.57,138.51,4.4620059]
[1764045865723,19.81654676,138.57,138.52,0.67]
[1764045866229,20.52654676,138.57,138.52,0.67]
[1764045866528,3.50768276,138.56,138.52,0.67]
[1764045866702,0.71,138.57,138.53,0.14216157]
[1764045866907,7.21470651,138.61,138.53,0.14216157]
[1764045866908,3.50768276,138.58,138.53,0.14216157]
[1764045867122,19.81654676,138.58,138.54,0.95432314]
[1764045867306,3.50768276,138.57,138.54,16.31213599]
[1764045867517,3.50768276,138.57,138.54,16.98213599]
[1764045868222,3.50768276,138.58,138.55,0.67]
[1764045868416,3.89,138.6,138.55,0.67]
[1764045868617,3.50768276,138.58,138.55,0.67]
[1764045869016,4.21768276,138.58,138.55,0.67]
[1764045869438,4.21768276,138.58,138.55,7.88734559]
[1764045869626,4.21768276,138.59,138.55,7.88734559]
[1764045870014,0.71,138.58,138.55,7.88734559]
[1764045870724,4.21768276,138.58,138.55,7.88734559]
[1764045874717,3.50768276,138.59,138.56,9.76426806]
[1764045874919,4.21768276,138.59,138.56,9.76426806]
[1764045875416,3.50768276,138.59,138.56,9.09426806]
[1764045875616,0.71,138.58,138.56,9.09426806]
[1764045875821,0.71,138.62,138.57,0.67]
[1764045876025,3.50768276,138.61,138.57,0.67]
[1764045876225,3.50768276,138.61,138.58,7.21604849]
[1764045876436,4.21768276,138.61,138.58,7.21604849]
[1764045876834,3.50768276,138.61,138.58,7.21604849]
[1764045877041,0.71,138.6,138.58,7.21604849]
[1764045877821,0.71,138.62,138.58,7.88604849]
[1764045878020,3.50768276,138.61,138.58,7.88604849]
[1764045878244,3.50768276,138.61,138.58,7.21604849]
[1764045878434,4.21768276,138.61,138.58,7.21604849]
[1764045879042,0.71,138.6,138.58,7.21604849]
[1764045881250,4.21768276,138.6,138.58,7.21604849]
[1764045882449,4.21768276,138.59,138.56,16.31120163]
[1764045882834,0.71,138.58,138.56,16.31120163]
[1764045883136,4.21768276,138.59,138.56,16.98120163]
[1764045883636,0.71,138.59,138.56,16.98120163]
[1764045888945,0.71,138.59,138.56,16.83904006]
[1764045890165,0.71,138.59,138.56,16.16904006]
[1764045890469,0.71,138.59,138.56,16.83904006]
[1764045891263,2.24373001,138.62,138.58,8.80994492]
[1764045891448,19.26259401,138.62,138.58,8.80994492]
[1764045891649,19.26259401,138.62,138.59,0.67]
[1764045892168,17.018864,138.62,138.59,7.88507156]
[1764045893584,18.55259401,138.65,138.6,0.80216157]
[1764045893750,0.66,138.64,138.6,0.80216157]
[1764045893954,16.968864,138.64,138.6,0.80216157]
[1764045894365,2.24373001,138.62,138.58,3.84]
[1764045894562,2.24373001,138.6,138.57,7.21656924]
[1764045894761,2.24373001,138.61,138.57,7.87656924]
[1764045895164,0.66,138.6,138.57,7.87656924]
[1764045896762,2.24373001,138.61,138.57,7.21656924]
[1764045896946,2.24373001,138.61,138.58,7.88575195]
[1764045897150,0.66,138.6,138.58,7.21575195]
[1764045898669,0.66,138.6,138.57,16.69636541]
[1764045898871,2.90373001,138.6,138.57,8.80994492]
[1764045899375,0.66,138.59,138.57,8.80994492]
[1764045899760,2.24373001,138.58,138.55,7.21739616]
[1764045900163,0.66,138.57,138.55,7.21739616]
[1764045900360,2.90373001,138.57,138.54,9.09426806]
[1764045900662,2.90373001,138.57,138.54,16.98223763]
[1764045901360,2.24373001,138.55,138.51,0.67]
[1764045901664,2.24373001,138.55,138.52,8.80994492]
[1764045901864,0.66,138.54,138.52,8.80994492]
[1764045902068,0.66,138.55,138.52,16.69899221]
[1764045902379,2.90373001,138.55,138.52,16.69899221]
[1764045904385,2.24373001,138.56,138.53,0.95432314]
[1764045904552,2.24373001,138.57,138.53,0.95432314]
[1764045904757,2.90373001,138.56,138.53,0.95432314]
[1764045905783,2.90373001,138.56,138.53,8.17255004]
[1764045907190,2.90373001,138.55,138.53,7.50255004]
[1764045907486,2.90373001,138.55,138.53,0.28432314]
[1764045907665,0.66,138.54,138.53,0.28432314]
[1764045908175,0.66,138.54,138.53,7.50297613]
[1764045908376,2.90373001,138.56,138.53,16.98292105]
[1764045909085,2.90373001,138.57,138.54,0.67]
[1764045909293,2.90373001,138.57,138.53,16.98292105]
[1764045909464,0.66,138.56,138.53,16.98292105]
[1764045909990,2.90373001,138.56,138.53,16.98292105]
[1764045910161,2.90373001,138.56,138.53,16.31292105]
[1764045911078,0.66,138.55,138.53,16.31292105]
[1764045911271,2.90373001,138.55,138.53,16.31292105]
[1764045912471,2.24373001,138.55,138.53,16.31292105]
[1764045912787,2.24373001,138.55,138.53,16.98292105]
[1764045913361,2.90373001,138.56,138.53,16.98292105]
[1764045914584,2.24373001,138.54,138.49,18.72152303]
[1764045914764,0.66,138.55,138.49,18.72152303]
[1764045914765,2.24373001,138.53,138.5,7.2202166]
[1764045914955,2.24373001,138.52,138.5,7.2202166]
[1764045915360,2.90373001,138.53,138.5,7.2202166]
[1764045920878,2.24373001,138.53,138.5,7.2202166]
[1764045921080,0.66,138.52,138.5,7.2202166]
[1764045923374,2.90373001,138.52,138.5,7.2202166]
[1764045923776,2.90373001,138.52,138.49,11.07055891]
[1764045928924,16.308864,138.55,138.51,2.24373001]
[1764045929082,2.24373001,138.54,138.5,9.91642963]
[1764045929280,2.92373001,138.54,138.51,0.68]
[1764045931895,2.92373001,138.54,138.51,7.89939836]
[1764045932284,2.92373001,138.53,138.51,7.21939836]
[1764045933199,2.92373001,138.53,138.5,16.99434779]
[1764045933404,0.68,138.52,138.5,16.31434779]
[1764045934107,0.68,138.52,138.49,11.08051658]
[1764045935002,2.92373001,138.53,138.5,0.68]
[1764045935518,0.68,138.57,138.53,8.80994492]
[1764045936011,16.988864,138.57,138.54,0.68]
[1764045936590,0.68,138.56,138.53,16.70808389]
[1764045936787,0.68,138.56,138.54,0.68]
[1764045937809,0.68,138.56,138.53,16.70808389]
[1764045939215,16.308864,138.57,138.54,0.68]
[1764045939408,0.68,138.57,138.54,0.68]
[1764045939712,0.68,138.57,138.54,7.89788045]
[1764045940229,0.14216157,138.65,138.55,0.96432314]
[1764045940398,0.68,138.58,138.55,0.96432314]
[1764045940586,2.92373001,138.58,138.55,0.96432314]
[1764045940816,2.92373001,138.58,138.55,9.09426806]
[1764045941030,0.68,138.57,138.55,9.09426806]
[1764045942220,0.68,138.57,138.55,16.31165508]
[1764045942920,2.92373001,138.58,138.55,16.99165508]
[1764045944597,16.308864,138.6,138.56,0.68]
[1764045944598,0.68,138.59,138.56,0.68]
[1764045944800,2.24373001,138.58,138.55,16.31165508]
[1764045944995,2.92373001,138.59,138.55,16.99165508]
[1764045945511,0.68,138.58,138.55,16.99165508]
[1764045947495,0.68,138.58,138.55,16.31165508]
[1764045947819,2.92373001,138.58,138.55,16.02733194]
[1764045948025,0.68,138.57,138.55,16.02733194]
[1764045948516,2.92373001,138.58,138.55,16.70733194]
[1764045950220,2.92373001,138.6,138.56,0.96432314]
[1764045950721,0.68,138.59,138.56,0.96432314]
[1764045951102,2.24373001,138.6,138.57,0.68]
[1764045951418,0.68,138.59,138.56,7.50090794]